Cogmind - Beta 11 X8 @@@ ROGUE MODE // 2021.11.16 @ 03:41:14 Player: Runia Result: Destroyed by DAS Turret with DAS Cannon Performance ------------- Evolutions (1) 500 Regions Visited (5) 1000 Robots Destroyed (69) 345 Value Destroyed (1431) 1431 Prototype IDs (32) 640 Alien Tech Used (0) 0 Bonus (505) 505 TOTAL SCORE: 4421 Bonus ------- High Alert Combat Kills 62 Follower Combat Kills 143 Aligned with FarCom 300 Cogmind --------- Core Integrity 0/400 Matter 153/300 Energy 88/100 System Corruption 0% Temperature Cool (0) Movement Core (50) Location -9/Exiles Parts ------- > --- POWER (1) -------- (None) > --- PROPULSION (3) --- (None) > --- UTILITY (3) ------ (None) > --- WEAPON (2) ------- (None) > --- INVENTORY (5) ---- (None) Peak State ------------ > --- POWER ------------ Ion Engine > --- PROPULSION ------- Light Treads > --- UTILITY ---------- Experimental Heat Sink Large Storage Unit Gravity Neutralizing Apparatus > --- WEAPON ----------- AWS/Gauss > --- INVENTORY -------- Improved Hover Unit Cooling System Cooling System Lightpack 2.0 Superbattery Experimental Sensor Array Medium Armor Plating Hardened Light Armor Plating Hardened Light Armor Plating Grenade Launcher Katana [Rating: 38] Favorites ----------- Power Ion Engine Engine Ion Engine Propulsion Light Treads Treads Light Treads Leg Aluminum Leg Hover Unit Improved Hover Unit Utility Large Storage Unit Device Cooling System Storage Large Storage Unit Protection Hardened Light Armor Plating Weapon Improved Medium Laser Energy Gun Improved Medium Laser Ballistic Gun AWS/Gauss Launcher Grenade Launcher Slashing Weapon Katana Build | -11 -10 -10 -9 -9 -9 ------- Run | Scr Mat Min Mat Min Exi Slots Evolved 2 | . . . 2 . . Power . | . . . . . . Propulsion 1 | . . . 1 . . Utility 1 | . . . 1 . . Weapon . | . . . . . . Parts Attached 61 | 2 14 1 21 7 16 Power 4 | . 2 1 1 . . Engine 4 | . 2 1 1 . . Core . | . . . . . . Reactor . | . . . . . . Propulsion 16 | 2 4 . 8 . 2 Treads 15 | 2 4 . 8 . 1 Leg . | . . . . . . Wheel . | . . . . . . Hover 1 | . . . . . 1 Flight . | . . . . . . Utility 16 | . 2 . 4 2 8 Device 6 | . 1 . 1 2 2 Storage 3 | . 1 . 1 . 1 Processor . | . . . . . . Hackware . | . . . . . . Protection 7 | . . . 2 . 5 Artifact . | . . . . . . Weapon 25 | . 6 . 8 5 6 Energy Gun 11 | . 4 . 4 3 . Energy Cannon . | . . . . . . Ballistic Gun 3 | . 1 . . . 2 Ballistic Cannon . | . . . . . . Launcher 9 | . 1 . 4 2 2 Special Weapon . | . . . . . . Impact Weapon . | . . . . . . Slashing Weapon 2 | . . . . . 2 Piercing Weapon . | . . . . . . Special Melee Weapon . | . . . . . . Unidentified Prototypes 4 | . 1 . . . 3 Parts Lost 14 | . 1 1 1 . 11 Power 2 | . . 1 . . 1 Propulsion 6 | . 1 . . . 5 Utility 4 | . . . 1 . 3 Weapon 2 | . . . . . 2 Highest Loss Streak 6 | . 1 1 1 . 6 Average Slot Usage (%) 96 | . 96 100 98 99 88 Engine 11 | . 14 14 11 11 10 Treads 30 | . 27 28 32 33 28 Device 11 | . 10 14 11 10 9 Storage 12 | . 14 14 12 11 10 Protection 6 | . . . 8 11 11 Energy Gun 18 | . 27 14 21 20 4 Launcher 3 | . . 14 . 1 4 Naked Turns 3 | . . . . . 3 Heaviest Build 47 | 14 32 32 38 38 47 Greatest Support 60 | 40 40 40 60 60 60 Greatest Overweight (x) 8 | . . . . . 8 Average Overweight (x) . | . . . . . . Largest Inventory Capacity 15 | 8 15 15 15 15 15 Average Capacity 14 | 8 14 15 15 15 14 Most Carried 15 | 5 12 12 15 15 15 Average Carried 11 | 3 5 11 14 14 13 Final Capacity 15 | 8 15 15 15 15 5 Final Carried 15 | 2 12 12 15 15 . Class Distribution -------------------- 80% | Mutant 19% | Scavenger-Mutant Dominant Class ---------------- Mutant | -10/Materials Mutant | -10/Mines Scavenger-Mutant | -9/Materials Mutant | -9/Mines Mutant | -9/Exiles Resources | -11 -10 -10 -9 -9 -9 ----------- Run | Scr Mat Min Mat Min Exi Matter Collected 1063 | 167 293 45 246 139 173 Remotely . | . . . . . . Salvage Created 2391 | . 873 26 966 410 116 Parts 126 | . 41 4 51 27 3 Haulers Intercepted 7 | . 2 . 5 . . Recyclers Shooed 2 | . 1 . . 1 . Parts Field Recycled . | . . . . . . Retrieved Matter . | . . . . . . Parts Self-Destructed . | . . . . . . Prevented . | . . . . . . Kills | -11 -10 -10 -9 -9 -9 ------- Run | Scr Mat Min Mat Min Exi Combat Hostiles Destroyed 49 | . 18 . 21 5 5 Guns 35 | . 18 . 14 2 1 AOE 14 | . . . 7 3 4 Classes Destroyed 12 | . 6 1 2 2 1 Worker 7 | . 3 1 1 2 . Builder 2 | . 1 . . 1 . Tunneler 2 | . . 1 . 1 . Hauler 7 | . 2 . 5 . . Recycler 3 | . . . . 3 . Operator 2 | . 1 . 1 . . Watcher 1 | . . . 1 . . Swarmer 13 | . 3 . 7 3 . Grunt 24 | . 15 . 8 1 . Duelist 1 | . . . . 1 . Sentry 6 | . . . 6 . . Assembled 4 | . . . . . 4 Best Kill Streak 5 | . 5 1 5 4 4 Combat Bots Only 5 | . 4 . 5 3 4 Max Kills in Single Turn 2 | . 1 1 2 2 2 Gunslinging . | . . . . . . Exploded 2 | . . . 2 2 2 Melee . | . . . . . . Uniques/NPCs Destroyed 1 | . . . . . 1 8R-AWN (-9/Exiles) Combat | -11 -10 -10 -9 -9 -9 -------- Run | Scr Mat Min Mat Min Exi Damage Taken 3283 | . 910 76 637 137 1523 Core 627 | . 197 . 77 . 353 Absorbed by Shields . | . . . . . . Core Remaining (%) 60 | 100 . 21 . . . Volleys Fired 196 | . 85 5 66 24 16 Largest 2 | . 2 1 2 2 1 Hottest 112 | . 100 56 112 112 30 Shots Fired 408 | . 168 5 123 42 70 Gun 375 | . 168 3 114 36 54 Cannon . | . . . . . . Launcher 33 | . . 2 9 6 16 Special . | . . . . . . Kinetic 63 | . 9 . . . 54 Thermal 312 | . 159 3 114 36 . Explosive 33 | . . 2 9 6 16 Electromagnetic . | . . . . . . Robot Hit Streak 24 | . 21 24 15 5 24 Robot Miss Streak 5 | . 5 2 4 4 1 Penetration Max . | . . . . . . Secondary Targets 2 | . 2 . . . . Max Gunslinging Chain 1 | . 1 . . . . Autonomous 55 | . . . . . 55 Shots Hit Robots 259 | . 107 3 77 20 52 Core Hits 124 | . 47 3 37 14 23 Critical Kills . | . . . . . . Critical Parts Destroyed . | . . . . . . Critical Strikes 14 | . 8 . 4 1 1 Burn 13 | . 8 . 4 1 . Destroy 1 | . . . . . 1 Melee Attacks . | . . . . . . Impact . | . . . . . . Slashing . | . . . . . . Piercing . | . . . . . . Sneak Attacks . | . . . . . . Combat Hostiles . | . . . . . . Follow-up Attacks . | . . . . . . Damage Inflicted 5993 | . 1459 95 2022 589 1828 Guns 4564 | . 1455 17 1254 361 1477 Cannons . | . . . . . . Explosions 1425 | . . 78 768 228 351 Melee . | . . . . . . Ramming 4 | . 4 . . . . Kinetic 1529 | . 52 . . . 1477 Thermal 3148 | . 1403 17 1367 361 . Explosive 1312 | . . 78 655 228 351 Electromagnetic . | . . . . . . Impact . | . . . . . . Slashing . | . . . . . . Piercing . | . . . . . . Highest Corruption 2 | . 2 2 . . . Average Corruption 2 | . 2 2 . . . Corruption Purged . | . . . . . . Effects 11 | . 10 1 . . . Message Errors 3 | . 2 1 . . . Heat Flow Errors 3 | . 3 . . . . Energy Discharges 1 | . 1 . . . . Data Loss (minor) 3 | . 3 . . . . Weapon Failures 1 | . 1 . . . . Overload Shots . | . . . . . . Overflow Damage 158 | . . 12 114 32 . Projectiles . | . . . . . . Explosions 158 | . . 12 114 32 . Melee . | . . . . . . Knockbacks . | . . . . . . Impact . | . . . . . . Kinetic . | . . . . . . Secondary . | . . . . . . Self-Inflicted Damage 94 | . . 76 4 . 14 Shots 4 | . . 2 1 . 1 Rammed 1 | . 1 . . . . Targets Rammed 1 | . 1 . . . . Kicked . | . . . . . . Crushed . | . . . . . . Highest Temperature 291 | . 291 . 87 114 . Average Temperature 74 | . 95 . 26 57 . Received Heat Transfer 645 | . 429 . 210 6 . Effects 2 | . 2 . . . . Interference 2 | . 2 . . . . Siege Activations . | . . . . . . Robots Corrupted . | . . . . . . Combat Hostiles . | . . . . . . Parts Fried . | . . . . . . Impact Corruptions . | . . . . . . Robots Melted . | . . . . . . Combat Hostiles . | . . . . . . Parts Melted 29 | . 16 . 11 2 . Heat Transferred 8449 | . 4514 37 3047 851 . Parts Sabotaged . | . . . . . . Parts Stolen . | . . . . . . Parts Stripped . | . . . . . . Power Chain Reactions . | . . . . . . Missiles Intercepted . | . . . . . . Alert | -11 -10 -10 -9 -9 -9 ------- Run | Scr Mat Min Mat Min Exi Peak Influence 534 | . 454 122 534 252 . Initial 187 | . . 122 13 187 . Average 206 | . 267 72 269 140 . Maximum Alert Level 2 | . 2 . 2 1 . Low Security (%) 51 | 100 26 100 36 67 . Level 1 42 | . 68 . 44 32 . Level 2 6 | . 5 . 18 . . Level 3 . | . . . . . . Level 4 . | . . . . . . Level 5 . | . . . . . . High Security . | . . . . . . Max Security . | . . . . . . Squads Dispatched 10 | . 6 . 4 . . Investigation 5 | . 3 . 2 . . Extermination . | . . . . . . Reinforcement 5 | . 3 . 2 . . Assault . | . . . . . . Garrison . | . . . . . . Intercept . | . . . . . . Construction Impeded . | . . . . . . Haulers Reinforced . | . . . . . . Active Scanning Responses . | . . . . . . Cargo Convoy Interrupts . | . . . . . . Stealth | -11 -10 -10 -9 -9 -9 --------- Run | Scr Mat Min Mat Min Exi Distress Signals 7 | . 1 . 4 2 . Communications Jammed . | . . . . . . Distress Signals . | . . . . . . Times Spotted 137 | . 35 . 45 5 52 Peak Tracking Total 10 | . 6 . 7 3 10 Tactical Retreats 15 | . 5 . 1 . 9 Traps | -11 -10 -10 -9 -9 -9 ------- Run | Scr Mat Min Mat Min Exi Traps Triggered 4 | . 3 . 1 . . Indirectly . | . . . . . . Trap Hack Attempts . | . . . . . . Triggered . | . . . . . . Disarmed . | . . . . . . Reprogrammed 4 | . . . 4 . . Reused 1 | . . . 1 . . Traps Extracted . | . . . . . . Installed . | . . . . . . Triggered 1 | . . . 1 . . Exploded 3 | . . . . . 3 Machines | -11 -10 -10 -9 -9 -9 ---------- Run | Scr Mat Min Mat Min Exi Machines Disabled 10 | . . . 4 . 6 Max in Single Turn 2 | . . . 2 . 2 Machines Sabotaged . | . . . . . . Garrisons Compromised . | . . . . . . Overloaded Fab Kills . | . . . . . . Hacking | -11 -10 -10 -9 -9 -9 --------- Run | Scr Mat Min Mat Min Exi Machines Accessed 15 | . 7 . 6 . 2 Terminals 9 | . 4 . 5 . . Fabricators . | . . . . . . Repair Stations 1 | . 1 . . . . Recycling Units 2 | . 2 . . . . Scanalyzers 1 | . . . 1 . . Garrison Access . | . . . . . . Total Hacks 56 | . 28 . 26 . 2 Successful 39 | . 19 . 18 . 2 Failed 17 | . 9 . 8 . . Catastrophic 1 | . . . 1 . . Database Lockouts . | . . . . . . Manual 23 | . 12 . 10 . 1 Terminals 46 | . 23 . 23 . . Fabricators . | . . . . . . Repair Stations 2 | . 2 . . . . Recycling Units 3 | . 3 . . . . Scanalyzers 3 | . . . 3 . . Garrison Access . | . . . . . . Terminal Hacks 28 | . 13 . 13 . 2 Record 1 | . . . . . 1 Part Schematic 1 | . 1 . . . . Robot Analysis 2 | . 2 . . . . Prototype ID Bank 3 | . 1 . 2 . . Level Access Points 1 | . . . 1 . . Terminal Index 1 | . 1 . . . . Alert Level 1 | . . . 1 . . Unreport Threat 3 | . . . 3 . . Locate Traps 5 | . 3 . 2 . . Reprogram Traps 1 | . . . 1 . . Maintenance Status 1 | . 1 . . . . Transport Status 1 | . . . 1 . . Hauler Manifests 2 | . 1 . 1 . . Registered Components 1 | . . . 1 . . Zone Layout 3 | . 3 . . . . EX-Prototype ID Bank 1 | . . . . . 1 Fabricator Hacks . | . . . . . . Repair Station Hacks 2 | . 2 . . . . Scan Component 1 | . 1 . . . . Repair 1 | . 1 . . . . Recycling Unit Hacks 1 | . 1 . . . . Report Inventory 1 | . 1 . . . . Scanalyzer 3 | . . . 3 . . Insert Component 2 | . . . 2 . . Analyze 1 | . . . 1 . . Garrison Access Hacks . | . . . . . . Unauthorized Hacks 5 | . 3 . 2 . . Terminals 3 | . 1 . 2 . . Track 1 | . . . 1 . . Assimilate 1 | . 1 . . . . Operators 1 | . . . 1 . . Fabricators . | . . . . . . Repair Stations . | . . . . . . Recycling Units 2 | . 2 . . . . Tunnel 2 | . 2 . . . . Scanalyzers . | . . . . . . Garrison Access . | . . . . . . Data Cores Recovered . | . . . . . . Used . | . . . . . . Hacking Detections 9 | . 4 . 5 . . Full Trace Events . | . . . . . . Feedback Events . | . . . . . . Feedback Blocked . | . . . . . . Robot Schematics Acquired . | . . . . . . Robots Built . | . . . . . . Authchips . | . . . . . . Time . | . . . . . . Total Robot Build Rating . | . . . . . . Part Schematics Acquired 2 | . 1 . 1 . . Parts Built . | . . . . . . Authchips . | . . . . . . Time . | . . . . . . Total Part Build Rating . | . . . . . . Parts Repaired 1 | . 1 . . . . Time 26 | . 26 . . . . Parts Recycled . | . . . . . . Recycled Matter . | . . . . . . Retrieved Matter . | . . . . . . Retrieved Components . | . . . . . . Parts Scanalyzed 1 | . . . 1 . . Part Schematics Acquired 1 | . . . 1 . . Parts Damaged . | . . . . . . Bothacking | -11 -10 -10 -9 -9 -9 ------------ Run | Scr Mat Min Mat Min Exi Used RIF Installer . | . . . . . . Robots Hacked . | . . . . . . Non-combat . | . . . . . . Combat . | . . . . . . Robot Hacks Applied . | . . . . . . Relay Couplers Released . | . . . . . . Fabnet Peak Effective % . | . . . . . . Robots Rewired . | . . . . . . Allies Hacked . | . . . . . . Hacks Repelled . | . . . . . . Allies | -11 -10 -10 -9 -9 -9 -------- Run | Scr Mat Min Mat Min Exi Total Allies 3 | . . 3 . . . Largest Group 3 | . . 3 3 . . Highest-Rated Group 40 | . . 40 40 . . Highest-Rated Ally 16 | . . 16 16 . . Total Orders . | . . . . . . Ally Attacks 41 | . . 6 35 . . Total Damage 398 | . . 73 325 . . Kills 11 | . . 1 10 . . Allies Corrupted . | . . . . . . Allies Melted . | . . . . . . Intel | -11 -10 -10 -9 -9 -9 ------- Run | Scr Mat Min Mat Min Exi Robot Analysis Total 2 | . 2 . . . . Derelict Logs Recovered 2 | . . 1 . 1 . Drone Launches . | . . . . . . Drone Recoveries . | . . . . . . Exploration | -11 -10 -10 -9 -9 -9 ------------- Run | Scr Mat Min Mat Min Exi Turns Passed 5377 | 4 1371 684 1167 1008 1143 Spaces Moved 2783 | 1 625 421 546 581 609 Core 3 | . . . . . 3 Treads 2752 | 1 625 421 546 581 578 Legs . | . . . . . . Wheels . | . . . . . . Hover 28 | . . . . . 28 Flight . | . . . . . . Fastest Speed 50 | 160 160 160 160 160 50 Average Speed 160 | 160 160 160 160 160 161 Slowest Speed 450 | 160 160 160 160 160 450 Overloaded Moves . | . . . . . . Propulsion Burnouts . | . . . . . . Robots Hopped . | . . . . . . Cave-ins Triggered . | . . . . . . Exploration Rate (%) 71 | 2 96 89 81 90 71 Regions Visited 5 Branch Regions 3 Pre-discovered Areas 5 | . 2 1 . 1 1 Known Exits Taken . | . . . . . . Unknown Exits Taken 5 | 1 1 1 1 1 . Scrap Searched 4 | . . 2 . 2 . Spaces Dug 12 | . . . . 12 . Terrain Destroyed 179 | . . 23 51 41 64 Melee . | . . . . . . Projectile 34 | . . . . . 34 AOE 145 | . . 23 51 41 30 Terrain Rammed . | . . . . . . Walls Destroyed . | . . . . . . Machines Disabled . | . . . . . . Actions | -11 -10 -10 -9 -9 -9 --------- Run | Scr Mat Min Mat Min Exi Total 3347 | 6 825 427 716 615 758 Wait 225 | . 76 . 62 2 85 Move 2778 | . 624 420 545 580 609 Hop . | . . . . . . Pick Up 35 | . 16 1 8 1 9 Fast Attach 13 | . 4 . 3 1 5 Attach 12 | 2 1 1 1 . 7 Detach 3 | . . . 1 . 2 Swap 37 | . 9 . 17 6 5 Drop 47 | 4 9 . 13 1 20 Fire 196 | . 85 5 66 24 16 Melee . | . . . . . . Ram . | . . . . . . Kick . | . . . . . . Crush 1 | . 1 . . . . Escape Stasis . | . . . . . . Rewire . | . . . . . . Trap . | . . . . . . Miscellaneous . | . . . . . . Route ------- -11/Scrapyard -10/Materials (discovered 5 exits: *Mat x3 / [*Min x2]) -10/Mines (discovered 2 exits: *Mat x2) -9/Materials (discovered 5 exits: *Mat x3 / [*Min x2]) -9/Mines (discovered 2 exits: *Mat / *Exi) -9/Exiles (discovered 2 exits: [*Min x2]) History --------- Turn | Location | Event 5 | -11/Scrapyard | Discovered new exit (range 0) 5 | -11/Scrapyard | Entered Materials 47 | -10/Materials | Discovered new exit (range 16) 142 | -10/Materials | Discovered new exit (range 15) 259 | -10/Materials | Core integrity fell below 50% 311 | -10/Materials | Build established: Mutant 558 | -10/Materials | Discovered new exit (range 16) 865 | -10/Materials | Discovered new exit (range 16) 1025 | -10/Materials | Discovered new exit (range 9) 1348 | -10/Materials | Repaired Lgt. Treads 1376 | -10/Materials | Entered Mines 1386 | -10/Mines | Met a Derelict bent on vengeance 1515 | -10/Mines | Discovered new exit (range 6) 1604 | -10/Mines | Assisted by bots powering up and referring to "LRC-V3" 1633 | -10/Mines | Learned location of Mines (-9) 1734 | -10/Mines | Discovered new exit (range 5) 2060 | -10/Mines | Entered Materials 2060 | -9/Materials | Accompanied by 3 allies 2060 | -9/Materials | Evolved 2 slots: Propulsion x1, Utility x1 2383 | -9/Materials | Identified exit to Materials 2391 | -9/Materials | Discovered new exit (range 12) 2413 | -9/Materials | Build established: Scavenger-Mutant 2758 | -9/Materials | Discovered new exit (range 16) 3019 | -9/Materials | Build established: Mutant 3227 | -9/Materials | Entered Mines 3348 | -9/Mines | Discovered exit to Materials (range 7) 3372 | -9/Mines | Learned location of Storage (-7) 3473 | -9/Mines | A weapon hastily lodged in a ceiling crevice suddenly fell to the ground 3728 | -9/Mines | Found a damaged Exp. Sensor Array with a note attached 3734 | -9/Mines | Found Prototype Device 3806 | -9/Mines | Deemed a non-threat by the Exiles lab entrance 4229 | -9/Mines | Discovered new exit (range 5) 4235 | -9/Mines | Entered Exiles 4275 | -9/Exiles | Met 8R-AWN 4301 | -9/Exiles | Met EX-HEX 4371 | -9/Exiles | Met EX-DEC 4373 | -9/Exiles | Learned location of Zion (-6) 4400 | -9/Exiles | Met EX-BIN 4423 | -9/Exiles | Aligned with FarCom system 4424 | -9/Exiles | Given EX-Vault access code 4461 | -9/Exiles | Opened EX-Vault 4475 | -9/Exiles | Found AWS/Gauss 4483 | -9/Exiles | Found Superbattery 4487 | -9/Exiles | Found Lightpack 2.0 4522 | -9/Exiles | Warned to stay clear of 0b10 Research branches 4735 | -9/Exiles | Discovered new exit (range 12) 4916 | -9/Exiles | Discovered new exit (range 15) 4979 | -9/Exiles | Build established: Scavenger-Mutant 5053 | -9/Exiles | Attacked by the Exiles 5192 | -9/Exiles | Destroyed 8R-AWN 5214 | -9/Exiles | Identified Exp. Sensor Array 5218 | -9/Exiles | Found Prototype Processor 5245 | -9/Exiles | Lost 4 parts (3n1u) 5279 | -9/Exiles | Core integrity fell below 50% 5371 | -9/Exiles | Core integrity fell below 20% 5378 | -9/Exiles | Destroyed by DAS Turret with DAS Cannon Last Messages --------------- 05347_ Dropped Gravity Neutralizing Apparatus. 05348_ Dropped Lrg. Storage Unit. 05349_ Dropped Hrd. Light Armor Plating. 05350_ Acquired Imp. Hover Unit. 05353_ Dropped Med. Armor Plating. 05354_ Acquired Lrg. Storage Unit. 05358_ Dropped Lrg. Storage Unit. 05358_ Acquired Hrd. Light Armor Plating. 05360_ Dropped Lightpack 2.0. 05362_ Hrd. Light Armor Plating destroyed. 05362_ Knocked back. 05363_ Acquired Hrd. Light Armor Plating. 05368_ Katana destroyed. 05368_ Knocked back. 05372_ Acquired 1 matter. 05372_ Knocked back. 05373_ Acquired 9 matter. 05374_ Hrd. Light Armor Plating destroyed. 05374_ Knocked back. 05376_ Imp. Hover Unit destroyed. Map ----- +----------------------------------------------------+ | ####???????#"" #????????#" "X" """ | | ##??????#"" "#????????#" """ | | ## #??????? ""?????????#" """"""""" | | # #?????????" ""????????##" ########## | | ###????????# ###??????##"" #????????? | | # ####???## # ########"" #????????? | | # # "#####X ##""""""" ##???????? | | ###" """"" " "" ##???#### | | ??#" "" """ " #####""" | | ??#### ! % " " " " | | ?????### !!! % " | | ???????### !![ % % | | ?????????##!!! | | ??????????## % | | ???????????##" | | ???????????## """""" | | ???????????# ######""" | | ??????????## ""##????#####""" | | ??????????# """##?????????##""" | | ??????????#" """##???????????#"""" | | ??????????#" ""#????????????#"" | | ??????????#" ########??####"""" | | ??????????#" t ##aaa####""" | | ??????????#"" % """" | | ??????????##" | | ???????????#" "" @% | | ???????????## | | ????????????#" " "" | | ????????????#"""" ""## ##""" " " " | | ????????????#"" ""#### #??###""" "" | | ?????????????" """"##??# #????###"""" | | ?????????????""" """#??## ####???###?? | | ????????????## ""##??#! "!#???????? | | ?????????????#"" """##???#" !#???????? | | ??????????????#""" #?????#" "#???????? | | ???????????????#"""" ##?????#!!""!"#???????? | | ????????????????## #??????########???????? | | ??????????????????#### ##?????????????????????? | | ?????????????????????## ???????????????????????? | | ??????????????????????# ???????????????????????? | | ??????????????????????? ???????????????????????? | | ?????????????????????????????????????????????????? | | ?????????????????????????????????????????????????? | | ?????????????????????????????????????????????????? | | ?????????????????????????????????????????????????? | | ?????????????????????????????????????????????????? | | ?????????????????????????????????????????????????? | | ?????????????????????????????????????????????????? | | ?????????????????????????????????????????????????? | | ?????????????????????????????????????????????????? | +----------------------------------------------------+ Best States ------------- Heat Dissipation 50 Energy Generation 10 Energy Capacity 250 Matter Stores 389 Matter Capacity 400 Sight Range 16 Terrain Scan Density 10 Additional Mass Support 12 Armor Coverage 375 Evasion (%) 53 Recoil Reduction 3 Item Schematics ----------------- Hcp. Storage Unit | -10/Materials | Hacked Med. Storage Unit | -9/Materials | Scanalyzed Robot Schematics ------------------ None Fabricated ------------ Nothing Alien Tech Used ----------------- None Achievements -------------- None Challenges ------------ None Game ------ Seed FlakBiocellStorm Manual? 0 Play Time 00:27:22 Cumulative 486.6 hours Start 2021.11.16 @ 03:16:04 End 2021.11.16 @ 03:41:14 Sessions 1 Manual Loads 0 Difficulty Rogue Special Mode None Game No. 480 Rogue 480 Adventurer 0 Explorer 0 Win Type - Total 12 Types 9/0/2/1/0/0/0/0/0 Lore% 82 Gallery% 93 Achievement% 72 Wizard Run 0 Options --------- ASCII 0 Keyboard 0 Movement Mouse Keybinds 1 Fullscreen 2 Font 24/Smallcaps Map View 76x50 Tactical HUD 1 Map Filters NONE Filters NONE Steam 1 RUN: 390de616-5767-443d-a2e2-ffeaf453e379